bitfinex-derivatives/quotes_ETHF0:USTF0_20260226
["timestamp","ask_amount","ask_price","bid_price","bid_amount"]
[1772093490494,5.7450157,2049.5,2048.5,0.64257356]
[1772093490797,5.7450157,2049.5,2047.9,20.35579672]
[1772093490798,0.04008455,2048.9,2047.9,0.64358145]
[1772093490996,0.04008455,2048.7,2047.9,0.64358145]
[1772093491293,0.11311871,2048.5,2047.1,0.60706438]
[1772093491797,0.11369953,2048.3,2047.1,0.61159516]
[1772093493898,40.8,2048.4,2047.1,0.61159516]
[1772093494393,40.93146983,2048.4,2047.1,0.61159516]
[1772093495398,0.13210721,2048.3,2047.1,0.61159516]
[1772093497005,0.12702898,2048.3,2047.3,0.6202935]
[1772093498202,0.12169164,2048.6,2047.3,0.6202935]
[1772093498804,40.92169164,2048.6,2047.3,0.6202935]
[1772093499205,0.12222111,2048.5,2047.3,0.6202935]
[1772093499801,0.12273037,2048.3,2047.3,0.6202935]
[1772093500308,0.12273037,2048.3,2045.3,38.40837]
[1772093500309,0.11794251,2047.6,2046.5,0.6202935]
[1772093500602,0.11794251,2047.4,2046.5,0.6202935]
[1772093501299,0.00533252,2047.4,2046.5,2.42581679]
[1772093501500,0.00533252,2047.4,2046.6,0.6202935]
[1772093501704,0.11897142,2048.0,2046.8,0.6202935]
[1772093502308,0.11897142,2048.0,2047.0,0.6202935]
[1772093502707,0.12397978,2048.0,2047.0,0.6202935]
[1772093505608,0.00500836,2048.0,2047.0,0.6202935]
[1772093507403,0.1246934,2048.7,2047.1,2.42040665]
[1772093507608,0.1246934,2048.7,2047.2,0.6202935]
[1772093507810,0.1246934,2048.7,2047.4,0.6202935]
[1772093508613,0.12893396,2048.7,2047.4,0.6202935]
[1772093509514,0.12893396,2048.7,2047.5,0.6202935]
[1772093509714,0.00424056,2048.7,2047.6,0.6202935]
[1772093511114,0.13473828,2048.7,2047.6,0.6202935]
[1772093520413,0.00424056,2048.7,2047.6,0.6202935]
[1772093520917,0.1346048,2049.1,2047.8,0.64813863]
[1772093521214,0.1346048,2049.1,2048.0,0.64813863]
[1772093521716,0.00543095,2049.1,2048.0,0.65377487]
[1772093523019,0.00543095,2049.1,2048.2,0.64813863]
[1772093523714,0.1333763,2049.7,2048.2,0.64813863]
[1772093523914,0.1333763,2049.7,2048.4,0.64813863]
[1772093524114,0.1333763,2049.7,2048.6,0.64813863]
[1772093524318,40.93103483,2049.6,2048.8,0.64813863]
[1772093524517,0.13103483,2049.9,2048.8,0.64813863]
[1772093524716,0.13103483,2049.8,2048.8,0.64813863]
[1772093524917,40.80479193,2049.9,2048.8,0.64813863]
[1772093525219,40.93539717,2049.9,2048.8,0.64813863]
[1772093525420,0.00479193,2049.9,2048.8,0.64813863]
[1772093526122,0.00479193,2049.9,2049.0,0.64813863]
[1772093526419,0.13272515,2050.3,2049.0,0.64813863]
[1772093527013,40.93230195,2050.5,2049.0,0.64813863]
[1772093527220,40.93723268,2050.5,2049.2,0.64813863]
[1772093527418,40.93723268,2050.5,2049.4,0.64813863]
[1772093527619,0.13230195,2050.4,2049.4,0.64813863]
[1772093530118,0.13230195,2050.4,2049.3,6.388]
[1772093530416,0.13230195,2050.4,2049.2,0.64813863]
[1772093533015,0.11687711,2050.2,2048.6,0.64813863]
[1772093533216,0.11687711,2050.0,2048.6,0.64813863]
[1772093535921,0.1204053,2050.2,2048.8,0.64813863]
[1772093536120,0.12696195,2050.4,2048.8,0.64813863]
[1772093536321,0.12696195,2050.4,2049.0,0.64813863]
[1772093536520,0.12696195,2050.4,2049.2,0.64813863]
[1772093539225,40.80493073,2050.5,2049.4,0.64813863]
[1772093539523,40.92847426,2050.5,2049.4,0.64813863]
[1772093540326,0.12308323,2050.3,2049.4,0.64813863]
[1772093546326,0.11895111,2050.1,2049.2,0.65039497]
[1772093546526,0.11895111,2050.1,2048.2,10.46096729]
[1772093546527,0.11895111,2049.9,2048.8,0.65039497]
[1772093546727,0.11863756,2049.8,2048.8,0.65039497]
[1772093551931,0.12027909,2049.6,2048.8,0.65039497]
[1772093552436,0.11537561,2049.9,2048.8,0.65039497]
[1772093553132,0.11508857,2050.0,2048.8,0.65039497]
[1772093553338,5.71972208,2049.9,2048.8,0.65039497]
[1772093553538,0.11508857,2050.0,2048.8,0.65039497]
[1772093555238,0.09449904,2049.8,2048.8,0.65039497]
[1772093556133,0.09187343,2050.0,2048.8,0.65039497]
[1772093556338,5.72093131,2049.9,2048.8,0.65039497]
[1772093556539,0.09187343,2050.2,2048.8,0.65039497]
[1772093556837,5.72159875,2050.1,2049.0,0.62720958]
[1772093557038,0.09187343,2050.2,2049.2,0.62720958]
[1772093557238,5.72175991,2050.1,2049.2,0.62720958]
[1772093557537,0.09158178,2050.3,2049.2,0.62720958]
[1772093557836,0.09129725,2050.1,2049.2,0.62720958]
[1772093558238,5.72291842,2050.0,2049.2,0.62720958]
[1772093558440,0.08973258,2049.9,2049.2,0.62720958]
[1772093561936,4.885,2050.2,2049.2,0.62720958]
[1772093562138,1.06920768,2050.2,2049.2,0.62720958]
[1772093562440,10.04979263,2050.9,2049.2,0.62720958]
[1772093562441,4.02555154,2052.9,2050.9,6.24089]
[1772093562644,0.66177574,2052.8,2051.4,0.00153016]
[1772093563141,0.66177574,2052.8,2051.8,0.00149084]
[1772093563343,0.6617954,2052.6,2051.9,6.39049084]
[1772093564038,0.6617954,2052.6,2051.9,0.00149084]
[1772093564238,0.65318473,2052.4,2051.8,0.00353836]
[1772093565133,0.65318473,2052.4,2051.8,0.03683835]
[1772093565339,0.65317273,2052.2,2051.8,0.00353836]
[1772093565534,0.65317273,2052.2,2051.6,0.03329999]
[1772093565741,3.83877578,2052.1,2051.6,0.03329999]
[1772093565940,0.65317273,2052.4,2051.6,0.03329999]
[1772093566242,0.66319471,2052.2,2051.4,6.39996511]
[1772093566443,0.66319471,2052.2,2051.4,6.40564657]
[1772093566741,0.66319471,2052.6,2051.5,0.00891912]
[1772093567044,0.66316861,2052.5,2051.5,0.00891912]
[1772093568048,0.00466433,2052.8,2051.5,0.00891912]
[1772093568049,4.49754671,2052.4,2051.5,0.00891912]
[1772093568249,0.65877093,2052.4,2051.5,0.00891912]
[1772093568548,3.83877578,2052.3,2051.5,0.00891912]
[1772093568750,4.49754671,2052.6,2051.5,0.00891912]
[1772093568949,4.49754671,2052.6,2051.7,0.01711213]
[1772093569744,5.98746,2054.3,2051.7,0.01711213]
[1772093569745,0.66740451,2054.4,2053.3,0.00142105]
[1772093569939,0.66740451,2054.4,2053.5,0.00142105]
[1772093570144,0.66740451,2054.4,2053.5,6.39042105]
[1772093570745,0.67227588,2054.4,2053.5,6.39543292]
[1772093571444,0.66941715,2054.3,2052.8,0.25608403]
[1772093572350,0.66941715,2054.3,2052.8,0.26202]
[1772093576860,0.75095353,2054.1,2052.8,0.26202]
[1772093577254,0.75095353,2054.1,2052.8,0.00593597]
[1772093578150,0.75095353,2054.1,2052.8,0.23645213]
[1772093579563,0.75095353,2054.1,2053.0,0.22721296]
[1772093580564,0.75095353,2054.1,2052.8,0.23092004]
[1772093580759,0.75095353,2053.5,2052.2,0.22161716]
[1772093580960,0.75095353,2053.1,2052.0,0.22161716]
[1772093581959,0.75095353,2053.1,2052.0,0.00497126]
[1772093585565,0.75095353,2052.9,2052.0,0.00497126]
[1772093585767,0.75497455,2052.9,2052.0,0.00497126]
[1772093586757,0.75497455,2052.9,2052.0,0.18997865]
[1772093587567,0.75497455,2052.9,2052.0,0.00497126]
[1772093590271,0.75497455,2052.9,2052.0,0.1906016]
[1772093590871,0.75497455,2052.9,2052.0,0.00497126]
[1772093595467,0.75095353,2052.8,2051.3,6.574958]
[1772093595866,0.75095353,2052.8,2051.4,0.18762256]
[1772093596575,0.75095353,2052.8,2051.4,0.19359359]
[1772093602180,0.75095353,2052.6,2051.4,0.00597103]
[1772093602488,0.75095353,2052.2,2050.8,0.17121724]
[1772093602689,0.75095353,2052.1,2050.8,0.17121724]
[1772093602879,0.75095353,2052.1,2050.6,6.02691812]
[1772093603077,0.75095353,2051.9,2050.3,6.19486537]
[1772093603386,0.75095353,2051.7,2050.4,0.16794725]
[1772093607289,0.71976968,2051.6,2050.5,0.16126311]
[1772093607587,0.71976968,2051.6,2050.8,0.16126311]
[1772093607786,0.71976968,2051.6,2051.0,0.157953]
[1772093608588,0.71976968,2052.2,2051.0,0.157953]
[1772093608789,0.71976968,2052.2,2051.1,0.15807851]
[1772093608983,0.71976968,2052.2,2051.2,0.15807851]
[1772093609587,0.71976968,2052.2,2051.3,6.386]
[1772093610590,0.71976968,2052.2,2051.3,6.52787852]
[1772093610790,0.71976968,2052.2,2051.4,0.14187852]
[1772093612691,0.71976968,2052.2,2051.4,6.387]
[1772093614288,0.71976968,2052.2,2051.5,0.12537148]
[1772093615191,0.71976968,2052.2,2051.2,6.02691812]
[1772093615393,0.71976968,2052.2,2051.3,6.386]
[1772093616293,0.71976968,2052.2,2051.2,0.11950578]
[1772093616594,0.72347323,2052.1,2051.1,6.386]
[1772093617991,0.72347323,2051.8,2050.7,0.11600771]
[1772093618189,0.72347323,2051.7,2050.5,6.14250269]
[1772093618388,0.72347323,2051.7,2050.5,6.50158457]
[1772093619394,0.72347323,2051.7,2050.6,0.11236393]
[1772093623892,0.72347323,2051.7,2050.8,0.10741456]
[1772093624093,0.72347323,2051.7,2051.0,0.10536473]
[1772093624997,0.72347323,2051.7,2050.6,6.02691812]
[1772093625196,0.72347323,2051.7,2050.7,6.388]
[1772093626998,0.72347323,2051.7,2050.7,6.48013845]
[1772093627496,0.72347323,2051.7,2050.8,0.09217606]
[1772093627899,0.72347323,2051.7,2050.7,6.388]
[1772093629200,0.72347323,2051.7,2050.7,6.47228546]
[1772093631902,0.72347323,2051.7,2050.8,0.07923197]
[1772093639107,0.72347323,2051.7,2050.9,0.09070306]
[1772093640708,0.72347323,2051.7,2051.0,0.06094828]
[1772093641606,0.69076022,2052.3,2051.1,0.06114885]
[1772093641813,0.69076022,2052.3,2051.3,0.06135147]
[1772093644311,0.69076022,2052.2,2051.2,6.388]
[1772093644610,0.69076022,2052.2,2051.2,6.44514725]
[1772093645307,0.69076022,2052.2,2051.3,0.05733721]
[1772093648412,0.69076022,2052.2,2051.4,0.06485988]
[1772093648907,0.69076022,2052.2,2051.3,0.06504697]
[1772093653415,0.69076022,2052.3,2051.3,6.09196509]
[1772093653616,0.69076022,2052.3,2051.5,0.68251276]
[1772093654714,0.69076022,2052.3,2051.3,6.70943088]
[1772093654922,0.69076022,2052.3,2051.4,0.68251276]
[1772093655307,0.69076022,2052.3,2051.5,0.68251276]
[1772093658115,0.69076022,2052.3,2051.6,0.68251276]
[1772093658513,0.69076022,2052.3,2051.8,0.68251276]
[1772093658709,0.69076022,2052.3,2051.8,0.68866789]
[1772093659515,0.69076022,2052.6,2051.8,0.68866789]
[1772093664617,0.69076022,2052.8,2051.9,0.68251276]
[1772093666821,0.00402102,2052.9,2052.0,0.70433229]
[1772093667026,0.65725344,2053.0,2052.2,0.70433229]
[1772093667227,0.65725344,2053.0,2052.4,0.70433229]
[1772093667628,40.8,2053.6,2052.4,0.70433229]
[1772093667629,0.65725344,2053.3,2052.4,0.70433229]
[1772093668029,0.6607403,2053.3,2052.4,0.70433229]
[1772093672634,0.65725344,2054.0,2052.6,0.70433229]
[1772093672834,0.65725344,2054.0,2053.0,0.70433229]
[1772093673033,0.65725344,2054.0,2053.1,6.385]
[1772093673630,0.66319274,2054.0,2053.1,6.385]
[1772093674028,0.66319274,2054.0,2053.1,7.08933229]
[1772093674334,0.66319274,2054.0,2053.2,0.70433229]
[1772093675940,0.66319274,2054.0,2053.1,7.04845744]
[1772093676733,0.65753093,2053.9,2052.8,0.66345744]
[1772093677632,0.65753093,2053.9,2052.7,6.384]
[1772093677633,0.65753093,2053.8,2052.7,6.384]
[1772093679034,0.65753093,2053.6,2052.4,7.04645744]
[1772093679235,0.65753093,2053.6,2052.5,0.66345744]
[1772093680532,0.65753093,2053.6,2052.4,6.383]
[1772093680737,0.65753093,2053.4,2052.3,0.66345744]
[1772093680939,0.65753093,2053.3,2052.3,0.66345744]
[1772093694044,0.65753093,2053.2,2052.1,0.66345744]
[1772093695543,0.65753093,2053.0,2052.1,0.66345744]
[1772093700649,0.6950217,2052.6,2051.8,0.00615513]
[1772093700849,0.6950217,2052.5,2051.8,0.00615513]
[1772093701045,0.7004139,2052.5,2051.8,0.00615513]
[1772093701255,0.7004139,2052.5,2051.8,0.7140739]
[1772093702049,0.7004139,2052.5,2051.8,0.00615513]
[1772093704353,0.7004139,2052.5,2051.8,0.7140739]
[1772093707153,0.0053922,2052.5,2051.8,0.7140739]
[1772093707852,0.7004139,2052.5,2051.8,0.7140739]
[1772093708258,0.7004139,2052.5,2051.8,0.00615513]
[1772093708961,0.7004139,2052.5,2051.5,0.70791877]
[1772093710154,0.7004139,2052.5,2051.5,0.71191406]
[1772093711959,0.6950217,2052.2,2051.2,0.70791877]
[1772093712662,0.6950217,2052.1,2051.2,0.70791877]
[1772093712864,0.6950217,2052.1,2051.2,0.71267952]
[1772093714864,0.6950217,2052.3,2051.2,0.71267952]
[1772093715057,0.6950217,2052.4,2051.3,0.70791877]
[1772093715261,0.0053922,2052.5,2051.6,0.70791877]
[1772093716165,0.7004139,2052.5,2051.6,0.70791877]
[1772093720869,0.0053922,2052.5,2051.8,0.70791877]
[1772093721069,0.0053922,2052.5,2051.9,0.70791877]
[1772093721270,0.0053922,2052.5,2052.0,0.70791877]
[1772093721968,0.7004139,2052.5,2052.0,0.70791877]
[1772093723272,0.0053922,2052.5,2052.0,0.70791877]
[1772093724168,0.6950217,2052.9,2052.0,0.70791877]
[1772093724563,0.6950217,2053.2,2052.0,0.70791877]
[1772093724872,0.6950217,2053.1,2052.1,0.70791877]
[1772093725070,0.70079156,2053.1,2052.1,0.70791877]
[1772093726969,0.70079156,2053.1,2052.2,0.66018768]
[1772093727172,0.00576986,2053.1,2052.2,0.66018768]
[1772093727375,0.00576986,2053.1,2052.4,0.66018768]
[1772093727573,0.00576986,2053.1,2052.6,0.66018768]
[1772093728473,0.66555573,2053.3,2052.6,0.66018768]
[1772093728667,0.66555573,2053.5,2052.6,0.66018768]
[1772093729367,0.6693251,2053.5,2052.6,0.66018768]
[1772093730167,0.6693251,2053.5,2052.3,0.66018768]
[1772093730373,0.6693251,2053.5,2052.4,0.66018768]
[1772093740876,0.68952151,2053.4,2052.4,0.66018768]
[1772093741075,4.87876937,2053.5,2052.3,7.0706797]
[1772093741076,0.68952151,2053.2,2052.3,7.0706797]
[1772093741280,0.68952151,2053.2,2052.4,0.6856797]
[1772093742894,0.68952151,2053.2,2052.5,0.6856797]
[1772093745495,0.68952151,2054.0,2053.0,0.6856797]
[1772093745683,0.68952151,2054.0,2053.1,7.0686797]
[1772093745883,0.68952151,2054.0,2053.1,0.6856797]
[1772093746291,13.40952151,2054.0,2053.1,0.6856797]
[1772093746491,0.68952151,2053.9,2053.1,0.6856797]
[1772093746692,0.68952151,2053.9,2053.1,0.69144939]
[1772093750899,0.68952151,2053.9,2053.1,0.00576969]
[1772093751106,0.68952151,2053.9,2052.8,0.6856797]
[1772093751708,0.68952151,2053.7,2052.8,0.6856797]
[1772093752108,0.68952151,2053.7,2052.8,0.69022533]
[1772093758713,0.68952151,2053.7,2052.9,0.70487518]
[1772093758912,0.68952151,2053.7,2053.0,0.70487518]
[1772093760812,0.68952151,2053.7,2052.8,4.79010478]
[1772093761012,0.68952151,2053.7,2052.9,0.70487518]
[1772093761318,0.68952151,2053.7,2052.8,0.00454563]
[1772093761319,0.6686619,2053.5,2052.8,0.00454563]
[1772093761507,0.6686619,2053.3,2052.5,0.5]
[1772093762317,0.24349,2053.4,2052.5,0.5]
[1772093762318,0.6686619,2053.1,2052.5,0.5]
[1772093762612,0.6686619,2053.1,2052.5,0.5042381]
[1772093762812,0.6686619,2053.1,2052.1,4.08068397]
[1772093763012,0.6686619,2053.1,2052.0,0.70487518]
[1772093763218,0.6686619,2052.9,2051.7,4.78555915]
[1772093763426,5.99581,2051.4,2050.0,0.72485747]
[1772093763712,0.00113959,2051.2,2050.4,10.1269609]
[1772093764021,0.00113959,2051.0,2050.4,10.13166385]
[1772093764415,40.8,2051.1,2050.5,0.72894587]
[1772093764712,0.00613592,2051.2,2050.5,0.72894587]
[1772093764919,0.00613592,2051.2,2050.7,0.72894587]
[1772093765915,0.67479782,2051.2,2050.8,4.07950261]
[1772093767014,0.67479782,2051.2,2050.8,4.87665162]
[1772093769322,12.889,2051.5,2050.9,0.83407338]
[1772093769713,13.5576619,2051.5,2050.9,0.83407338]
[1772093769913,54.3576619,2051.5,2050.9,0.83407338]
[1772093770320,0.6686619,2051.4,2051.0,4.92848222]
[1772093770519,13.56119711,2051.5,2051.0,0.84897961]
[1772093770822,12.89253521,2051.5,2051.2,0.84897961]
[1772093771024,12.46739051,2051.5,2051.2,0.84897961]
[1772093772024,13.13605241,2051.5,2051.3,3.40505314]
[1772093772328,13.13605241,2051.5,2051.0,0.84965375]
[1772093772728,12.46739051,2051.5,2051.2,0.84965375]
[1772093773526,10.5829656,2051.5,2051.2,0.84965375]
[1772093775733,10.5829656,2051.5,2050.7,6.386]
[1772093775734,0.00353521,2051.5,2051.4,0.8435348]
[1772093775936,12.933,2051.8,2051.5,0.8435348]
[1772093776934,12.93885075,2051.8,2051.5,0.8435348]
[1772093777137,12.93885075,2051.8,2051.7,0.84810378]
[1772093777334,12.93885075,2051.8,2051.6,0.56697768]
[1772093777530,40.8,2052.3,2051.8,0.70487518]
[1772093777531,0.6686619,2052.2,2051.8,0.70487518]
[1772093777837,0.6686619,2052.2,2051.6,0.70487518]
[1772093778231,0.6686619,2052.4,2051.8,0.70487518]
[1772093778536,0.67350363,2052.4,2051.8,0.70487518]
[1772093779835,0.67350363,2052.4,2052.2,9.40210343]
[1772093780137,0.67350363,2052.4,2052.2,9.40672792]
[1772093780438,0.67350363,2052.4,2052.2,0.00462449]
[1772093781434,0.67350363,2052.4,2051.8,0.70487518]
[1772093781638,0.67350363,2052.4,2052.0,3.26219088]
[1772093782134,0.67350363,2052.4,2052.0,3.96706606]
[1772093782338,0.67350363,2052.4,2052.1,0.70487518]
[1772093782538,0.00484173,2052.4,2052.1,0.70487518]
[1772093782937,0.67350363,2052.4,2052.0,3.26568289]
[1772093783138,0.67350363,2052.4,2052.0,3.97055807]
[1772093783838,0.67350363,2052.4,2052.0,0.70836719]
[1772093784034,0.67350363,2052.4,2052.0,3.26568289]
[1772093785340,0.6686619,2052.2,2051.5,0.5]
[1772093785640,0.6686619,2052.2,2051.5,1.86162749]
[1772093786036,0.6686619,2052.2,2051.3,1.36158749]
[1772093786239,0.17696404,2052.1,2051.3,1.36737495]
[1772093786440,0.17696404,2051.9,2051.3,1.36737495]
[1772093786739,13.27896404,2051.8,2051.3,1.36737495]
[1772093787337,13.102,2051.8,2051.3,1.36737495]
[1772093787544,13.52262821,2051.8,2051.3,1.36737495]
[1772093788437,13.102,2051.8,2051.3,1.36737495]
[1772093788746,13.39676934,2051.8,2051.3,1.36737495]
[1772093789537,13.102,2051.8,2051.3,1.36737495]
[1772093789737,13.113,2052.1,2051.3,1.36737495]
[1772093790339,0.28598496,2052.0,2051.3,1.36737495]
[1772093790739,13.113,2052.1,2051.3,1.36737495]
[1772093792142,0.00484173,2052.4,2051.3,1.36737495]
[1772093792143,13.41449886,2052.4,2051.3,1.36737495]
[1772093792340,6.25694378,2052.3,2051.3,1.36737495]
[1772093792540,13.41449886,2052.4,2051.3,1.36737495]
[1772093792849,6.53025146,2052.3,2051.3,1.36737495]
[1772093793048,0.2732786,2052.3,2051.3,1.36737495]
[1772093793850,13.13484173,2052.4,2051.3,1.36737495]
[1772093794150,6.2603977,2052.3,2051.3,1.36737495]
[1772093794350,13.41584596,2052.4,2051.3,1.36737495]
[1772093794551,13.41584596,2052.4,2052.1,8.38487343]
[1772093794552,6.26038759,2052.3,2052.1,8.38487343]
[1772093794748,13.41189821,2052.4,2052.1,8.38487343]
[1772093794948,6.26037146,2052.3,2052.1,8.38487343]
[1772093795151,13.41189821,2052.4,2052.1,7.89664343]
[1772093795454,6.26178396,2052.3,2052.1,7.89664343]
[1772093795747,13.41189821,2052.4,2052.1,9.31304768]
[1772093795948,6.26196574,2052.3,2052.2,1.41640425]
[1772093796252,0.37875867,2052.6,2052.1,9.31304768]
[1772093796453,6.63751522,2052.5,2052.1,9.31304768]
[1772093796652,59.19536785,2052.7,2052.2,1.41640425]
[1772093796951,6.63112864,2052.6,2052.2,1.41640425]
[1772093797146,6.26421064,2052.5,2052.2,1.41640425]
[1772093797451,6.26421064,2052.4,2052.2,1.41156252]
[1772093797653,0.37217039,2052.6,2052.2,1.41156252]
[1772093797950,0.36553527,2052.4,2051.4,1.41640425]
[1772093798254,6.63565753,2052.3,2051.4,1.41640425]
[1772093798555,0.36553527,2052.3,2051.4,1.41640425]
[1772093799255,13.196,2052.4,2051.4,1.41640425]
[1772093799851,6.27396781,2052.3,2051.4,1.41640425]
[1772093800053,13.196,2052.4,2051.4,1.41640425]
[1772093800253,6.27397492,2052.3,2051.4,1.41640425]
[1772093800453,13.196,2052.4,2051.4,1.41640425]
[1772093800654,6.27570448,2052.3,2051.4,1.41640425]
[1772093800856,13.196,2052.4,2051.4,1.41640425]
[1772093801052,6.27570192,2052.3,2051.4,1.41640425]
[1772093801252,13.196,2052.4,2051.4,1.41640425]
[1772093801457,0.35304963,2051.7,2051.3,7.46e-06]
[1772093801749,19.82764415,2051.6,2051.1,1.41640425]
[1772093801954,6.27659452,2051.5,2051.1,1.41640425]
[1772093802159,13.55104963,2051.6,2051.1,1.41640425]
[1772093802350,6.64231365,2051.5,2051.1,1.41640425]
[1772093802549,1.52148191,2051.4,2050.9,1.41640425]
[1772093803553,1.52148191,2051.4,2050.9,1.42134828]
[1772093804052,7.79439465,2051.3,2050.9,0.95246853]
[1772093804251,1.52148191,2051.5,2050.9,0.95246853]
[1772093804559,1.52148191,2051.3,2050.9,0.95246853]
[1772093805659,1.52148191,2051.5,2050.9,0.95246853]
[1772093807862,1.52148191,2050.7,2049.5,1.41640425]
[1772093808163,19.4557694,2050.6,2049.5,1.41640425]
[1772093808361,40.8,2050.5,2049.5,1.41640425]
[1772093808867,0.00588286,2050.5,2049.5,1.42232972]
[1772093810163,1.52148191,2050.4,2049.5,1.42232972]
[1772093820368,13.278,2050.3,2049.5,1.42232972]
[1772093820568,0.00588286,2050.5,2049.5,1.42232972]
[1772093821669,0.44859737,2050.5,2049.5,1.42232972]
[1772093822271,0.00588286,2050.5,2049.5,1.42232972]
[1772093824478,0.42101725,2051.0,2049.7,1.79571275]
[1772093825375,0.2438,2050.8,2049.7,1.79571275]
[1772093825574,0.41483441,2050.7,2049.7,1.79571275]
[1772093827482,0.2438,2050.8,2049.7,1.79571275]
[1772093827483,0.64719649,2050.8,2049.7,1.79571275]
[1772093828183,0.42610607,2050.7,2049.7,1.79571275]
[1772093831377,6.17424652,2050.6,2049.7,1.79571275]
[1772093831582,4.41314724,2051.0,2049.7,1.79571275]
[1772093831785,6.5751115,2050.9,2049.7,1.79571275]
[1772093831984,6.17542605,2050.8,2049.7,1.79571275]
[1772093835385,0.39968545,2050.9,2049.7,1.79571275]
[1772093835690,6.18483309,2050.8,2049.7,1.79571275]
[1772093835890,0.39224011,2051.0,2049.7,1.79571275]
[1772093836091,6.12562981,2050.9,2049.7,1.79571275]
[1772093836293,6.51213691,2050.8,2049.7,1.79571275]
[1772093836592,6.12562981,2050.7,2049.7,1.79571275]
[1772093839793,0.38848576,2050.6,2049.7,1.79571275]
[1772093845489,6.11727442,2050.5,2049.7,1.79571275]
[1772093845692,0.38848576,2050.6,2049.7,1.79571275]
[1772093845893,6.11727579,2050.5,2049.7,1.79571275]
[1772093846089,0.38848576,2050.6,2049.7,1.79571275]
[1772093846294,6.11848913,2050.5,2049.7,1.79571275]
[1772093846495,0.38848576,2050.6,2049.7,1.79571275]
[1772093846698,6.11871763,2050.5,2049.7,1.79571275]
[1772093846900,0.38848576,2050.6,2049.7,1.79571275]
[1772093847096,6.11871826,2050.5,2049.7,1.79571275]
[1772093847399,4.33918567,2050.8,2049.7,1.79571275]
[1772093847698,6.12082728,2050.7,2049.7,1.79571275]
[1772093848000,6.12082728,2050.6,2049.7,1.79571275]
[1772093848198,4.33918567,2050.8,2049.7,1.79571275]
[1772093848400,6.12001355,2050.7,2049.7,1.79571275]
[1772093848692,6.12001355,2050.6,2049.7,1.79571275]
[1772093848899,4.33918567,2050.8,2049.7,1.79571275]
[1772093849199,6.12001373,2050.7,2049.7,1.79571275]
[1772093849398,6.12001373,2050.6,2049.7,1.79571275]
[1772093849599,6.12001373,2050.5,2049.7,1.79571275]
[1772093849797,4.00052635,2050.8,2049.7,1.79571275]
[1772093850001,0.31743515,2050.7,2049.7,1.79571275]
[1772093850297,6.12114006,2050.6,2049.7,1.79571275]
[1772093850497,6.12114006,2050.5,2049.7,1.79571275]
[1772093850698,0.31218955,2050.6,2049.7,1.79571275]
[1772093850894,6.12110356,2050.5,2049.7,1.79571275]
[1772093851096,0.31218955,2050.6,2049.7,1.79571275]
[1772093851399,6.42684314,2050.5,2049.7,1.79571275]
[1772093851699,0.30572786,2050.4,2049.7,1.79571275]
[1772093852598,0.30417658,2050.3,2049.6,1.74677414]
[1772093852798,0.29723683,2050.1,2049.6,1.74677414]
[1772093853598,0.29723683,2050.1,2049.5,0.00592547]
[1772093853995,0.29076542,2049.8,2049.0,1.74677414]
[1772093854302,0.29423219,2049.6,2049.0,1.74677414]
[1772093855003,0.29423219,2049.6,2049.0,0.00568765]
[1772093855502,0.29150038,2049.4,2048.5,1.60744714]
[1772093855998,0.28452666,2049.2,2048.5,1.60744714]
[1772093856396,0.2880313,2049.2,2048.5,0.00485633]
[1772093858500,0.2880313,2049.2,2048.5,1.66032778]
[1772093861412,0.00350464,2049.2,2048.5,1.66032778]
[1772093861809,0.14025362,2049.7,2048.5,1.66032778]
[1772093862909,0.14539084,2049.7,2048.5,1.66032778]
[1772093863112,0.13782828,2049.3,2048.5,1.66032778]
[1772093863312,0.13782828,2049.1,2048.5,0.00485633]
[1772093864815,0.13782828,2049.1,2048.2,1.66177029]
[1772093865115,0.13782828,2049.1,2048.2,5.66527029]
[1772093865315,0.13782828,2049.1,2048.3,1.66142448]
[1772093865714,0.13782828,2049.1,2048.3,1.66643769]
[1772093869016,0.10058864,2048.9,2048.3,1.66643769]
[1772093869720,0.24401,2049.0,2048.3,1.66643769]
[1772093869923,0.33832077,2049.0,2048.3,1.66643769]
[1772093870423,0.13659387,2048.9,2048.3,1.66643769]
[1772093880724,0.27549935,2049.0,2048.3,1.66643769]
[1772093881326,6.08973059,2048.9,2048.3,1.66643769]
[1772093881526,0.27549935,2049.0,2048.3,1.66643769]
[1772093881726,6.09013413,2048.9,2048.3,1.66643769]
[1772093881927,0.27549935,2049.0,2048.3,1.66643769]
[1772093882127,6.09013413,2048.9,2048.3,1.66643769]
[1772093882332,6.09013413,2048.8,2048.3,1.66643769]
[1772093882523,17.06625497,2049.2,2048.3,1.66643769]
[1772093882724,6.10037642,2049.1,2048.3,1.66643769]
[1772093883027,6.10037642,2049.0,2048.3,1.66643769]
[1772093883228,6.1128874,2048.9,2048.3,1.66643769]
[1772093883424,17.06625497,2049.2,2048.3,1.66643769]
[1772093883626,6.1129027,2049.1,2048.3,1.66643769]
[1772093883824,6.1129027,2049.0,2048.3,1.66643769]
[1772093884026,6.1129027,2048.9,2048.3,1.66643769]
[1772093884330,4.00425497,2049.2,2048.3,1.66643769]
[1772093885227,10.11178729,2049.2,2048.3,1.66643769]
[1772093885728,3.7016535,2049.1,2048.3,1.66643769]
[1772093885926,4.00425497,2049.4,2048.3,1.66643769]
[1772093886533,4.00425497,2049.5,2048.3,1.66643769]
[1772093886933,18.66354555,2049.6,2048.3,1.66643769]
[1772093887132,1.63729058,2049.5,2048.5,1.67764533]
[1772093891738,1.63729058,2049.3,2048.5,1.67764533]
[1772093893841,1.63729058,2049.1,2048.3,1.68265854]
[1772093894138,1.63729058,2049.0,2048.3,1.68265854]
[1772093897844,1.63729058,2048.8,2048.3,1.68265854]
[1772093898235,1.63729058,2048.8,2048.3,0.00501321]
[1772093898442,1.63729058,2048.8,2048.3,1.68265854]
[1772093899642,7.62913763,2048.7,2048.3,1.68265854]
[1772093899844,1.63729058,2048.7,2048.3,1.68265854]
[1772093901749,1.63729058,2048.9,2048.3,1.68265854]
[1772093901949,1.63729058,2048.7,2048.3,1.68265854]
[1772093907753,1.53847551,2048.9,2048.3,1.68265854]
[1772093907954,7.53169079,2048.8,2048.3,1.68265854]
[1772093908153,1.53847551,2048.8,2048.3,1.68265854]
[1772093911958,1.53847551,2049.0,2048.3,1.68265854]
[1772093912161,5.96674488,2048.9,2048.3,1.68265854]
[1772093912358,5.96674488,2048.8,2048.3,1.68265854]
[1772093912558,1.53847551,2049.0,2048.3,1.68265854]
[1772093912758,5.96669596,2048.9,2048.3,1.68265854]
[1772093912956,5.96669596,2048.8,2048.3,1.68265854]
[1772093913559,1.53847551,2049.0,2048.3,1.68265854]
[1772093913759,5.96718032,2048.9,2048.3,1.68265854]
[1772093914058,1.53847551,2049.0,2048.3,1.68265854]
[1772093914262,5.96718086,2048.9,2048.3,1.68265854]
[1772093914453,1.53847551,2049.0,2048.3,1.68265854]
[1772093914650,5.96707362,2048.9,2048.3,1.68265854]
[1772093914856,1.53847551,2049.0,2048.3,1.68265854]
[1772093915055,5.96721804,2048.9,2048.3,5.68595854]
[1772093915264,1.53847551,2049.0,2048.4,1.53298476]
[1772093915464,5.96718049,2048.9,2048.4,1.53298476]